[Event "Titled Tuesday Blitz June 15 2021"]
[White "Avila Pavas, Santiago"]
[Black "Rottenwohrer Suarez, Juan"]
[WhiteFideId "4437128"]
[BlackFideId "32068182"]
[WhiteElo "2244"]
[BlackElo "2188"]
[Result "1-0"]
[Round "10"]
[TimeControl "180+1"]
[Date "2021.06.15"]
[WhiteClock "0:01:15"]
[BlackClock "0:00:01"]

1. d4 {[%clk 0:03:00]}  Nf6 {[%clk 0:02:59]} 2. Nf3 {[%clk 0:02:59]}  g6 {[%clk 0:03:00]} 3. Bg5 {[%clk 0:02:59]}  Ne4 {[%clk 0:02:59]} 4. Bf4 {[%clk 0:02:59]}  Bg7 {[%clk 0:02:58]} 5. Nbd2 {[%clk 0:03:00]}  Nxd2 {[%clk 0:02:58]} 6. Qxd2 {[%clk 0:03:01]}  d5 {[%clk 0:02:56]} 7. e3 {[%clk 0:03:01]}  O-O {[%clk 0:02:57]} 8. h4 {[%clk 0:03:00]}  h5 {[%clk 0:02:55]} 9. O-O-O {[%clk 0:02:59]}  Bg4 {[%clk 0:02:54]} 10. Be2 {[%clk 0:02:59]}  c5 {[%clk 0:02:53]} 11. Ng5 {[%clk 0:02:57]}  Bxe2 {[%clk 0:02:50]} 12. Qxe2 {[%clk 0:02:58]}  cxd4 {[%clk 0:02:49]} 13. exd4 {[%clk 0:02:57]}  Nc6 {[%clk 0:02:46]} 14. c3 {[%clk 0:02:56]}  Rc8 {[%clk 0:02:45]} 15. Kb1 {[%clk 0:02:57]}  Na5 {[%clk 0:02:33]} 16. g4 {[%clk 0:02:52]}  hxg4 {[%clk 0:02:24]} 17. h5 {[%clk 0:02:50]}  Qd7 {[%clk 0:02:13]} 18. Ka1 {[%clk 0:02:27]}  Rc6 {[%clk 0:02:12]} 19. f3 {[%clk 0:02:22]}  Ra6 {[%clk 0:02:09]} 20. fxg4 {[%clk 0:02:17]}  Qa4 {[%clk 0:01:41]} 21. Kb1 {[%clk 0:01:50]}  Nc4 {[%clk 0:01:35]} 22. b3 {[%clk 0:01:50]}  Rb6 {[%clk 0:01:29]} 23. Rd3 {[%clk 0:01:44]}  a5 {[%clk 0:00:29]} 24. Rdh3 {[%clk 0:01:39]}  Rxb3+ {[%clk 0:00:19]} 25. axb3 {[%clk 0:01:40]}  Qxb3+ {[%clk 0:00:19]} 26. Ka1 {[%clk 0:01:40]}  Na3 {[%clk 0:00:05]} 27. Rc1 {[%clk 0:01:39]}  Nc4 {[%clk 0:00:04]} 28. Qa2 {[%clk 0:01:38]}  Qb5 {[%clk 0:00:04]} 29. Rch1 {[%clk 0:01:26]}  a4 {[%clk 0:00:03]} 30. hxg6 {[%clk 0:01:15]}  fxg6 {[%clk 0:00:04]} 31. Qh2 {[%clk 0:01:15]}  Rxf4 {[%clk 0:00:01]} 32. Rh8+ {[%clk 0:01:15]} 1-0


[Site "https://www.chess.com"]

[Event "Titled Tuesday Blitz June 15 2021"]
[White "Bologan, Victor"]
[Black "Sargsyan, Anna M."]
[WhiteFideId "13900048"]
[BlackFideId "13308130"]
[WhiteElo "2511"]
[BlackElo "2263"]
[Result "0-1"]
[Round "10"]
[TimeControl "180+1"]
[Date "2021.06.15"]
[WhiteClock "0:01:13"]
[BlackClock "0:00:41"]

1. e4 {[%clk 0:03:00]}  c6 {[%clk 0:03:00]} 2. d4 {[%clk 0:02:59]}  d5 {[%clk 0:03:00]} 3. exd5 {[%clk 0:02:59]}  cxd5 {[%clk 0:03:01]} 4. c4 {[%clk 0:03:00]}  Nf6 {[%clk 0:03:01]} 5. Nc3 {[%clk 0:03:01]}  Nc6 {[%clk 0:03:01]} 6. Nf3 {[%clk 0:03:00]}  Bg4 {[%clk 0:03:01]} 7. cxd5 {[%clk 0:02:57]}  Nxd5 {[%clk 0:03:02]} 8. Qb3 {[%clk 0:02:57]}  Bxf3 {[%clk 0:03:00]} 9. gxf3 {[%clk 0:02:52]}  Nb6 {[%clk 0:02:59]} 10. d5 {[%clk 0:02:49]}  Nd4 {[%clk 0:02:56]} 11. Qd1 {[%clk 0:02:48]}  e5 {[%clk 0:02:56]} 12. dxe6 {[%clk 0:02:48]}  fxe6 {[%clk 0:02:54]} 13. Be3 {[%clk 0:02:47]}  Bc5 {[%clk 0:02:54]} 14. b4 {[%clk 0:02:37]}  O-O {[%clk 0:02:54]} 15. bxc5 {[%clk 0:02:32]}  Nxf3+ {[%clk 0:02:54]} 16. Ke2 {[%clk 0:02:32]}  Qf6 {[%clk 0:02:34]} 17. cxb6 {[%clk 0:02:15]}  Qxc3 {[%clk 0:02:35]} 18. Rc1 {[%clk 0:02:05]}  Qb2+ {[%clk 0:02:35]} 19. Qc2 {[%clk 0:01:56]}  Qb5+ {[%clk 0:02:34]} 20. Qc4 {[%clk 0:01:53]}  Qh5 {[%clk 0:02:34]} 21. Qxe6+ {[%clk 0:01:48]}  Kh8 {[%clk 0:02:34]} 22. Rc5 {[%clk 0:01:45]}  Nd4+ {[%clk 0:01:33]} 23. Kd2 {[%clk 0:01:32]}  Qxc5 {[%clk 0:01:25]} 24. Qc4 {[%clk 0:01:31]}  Qa5+ {[%clk 0:01:16]} 25. Kd1 {[%clk 0:01:26]}  Nf3 {[%clk 0:01:07]} 26. Bd3 {[%clk 0:01:14]}  Ne5 {[%clk 0:01:01]} 27. Qb5 {[%clk 0:01:13]}  Qc3 {[%clk 0:00:41]} 0-1


[Site "https://www.chess.com"]

[Event "Titled Tuesday Blitz June 15 2021"]
[White "Can, Emre"]
[Black "Skliarov, Viktor"]
[WhiteFideId "6302181"]
[BlackFideId "14106736"]
[WhiteElo "2503"]
[BlackElo "2344"]
[Result "0-1"]
[Round "10"]
[TimeControl "180+1"]
[Date "2021.06.15"]
[WhiteClock "0:00:02"]
[BlackClock "0:00:09"]

1. e4 {[%clk 0:03:00]}  c5 {[%clk 0:03:00]} 2. Nf3 {[%clk 0:03:00]}  Nc6 {[%clk 0:03:00]} 3. c3 {[%clk 0:03:00]}  Nf6 {[%clk 0:03:00]} 4. e5 {[%clk 0:03:00]}  Nd5 {[%clk 0:03:01]} 5. d4 {[%clk 0:03:01]}  cxd4 {[%clk 0:03:01]} 6. cxd4 {[%clk 0:03:02]}  d6 {[%clk 0:03:02]} 7. Bc4 {[%clk 0:03:02]}  Nb6 {[%clk 0:03:01]} 8. Bb5 {[%clk 0:03:02]}  Bd7 {[%clk 0:03:00]} 9. Nc3 {[%clk 0:03:02]}  a6 {[%clk 0:02:56]} 10. Bxc6 {[%clk 0:02:43]}  bxc6 {[%clk 0:02:56]} 11. O-O {[%clk 0:02:34]}  d5 {[%clk 0:02:53]} 12. h3 {[%clk 0:02:30]}  h6 {[%clk 0:02:48]} 13. Ne1 {[%clk 0:02:11]}  Bf5 {[%clk 0:02:32]} 14. Na4 {[%clk 0:02:05]}  Nxa4 {[%clk 0:02:29]} 15. Qxa4 {[%clk 0:02:05]}  Qd7 {[%clk 0:02:29]} 16. b3 {[%clk 0:01:57]}  e6 {[%clk 0:02:07]} 17. Ba3 {[%clk 0:01:55]}  c5 {[%clk 0:02:07]} 18. Qxd7+ {[%clk 0:01:47]}  Kxd7 {[%clk 0:02:07]} 19. dxc5 {[%clk 0:01:42]}  Kc6 {[%clk 0:02:06]} 20. Nf3 {[%clk 0:01:41]}  Be4 {[%clk 0:01:54]} 21. Nd4+ {[%clk 0:01:41]}  Kc7 {[%clk 0:01:54]} 22. b4 {[%clk 0:01:36]}  Be7 {[%clk 0:01:49]} 23. Rac1 {[%clk 0:01:32]}  g5 {[%clk 0:01:46]} 24. Rc3 {[%clk 0:01:23]}  h5 {[%clk 0:01:34]} 25. f3 {[%clk 0:01:19]}  Bg6 {[%clk 0:01:33]} 26. Bc1 {[%clk 0:01:17]}  g4 {[%clk 0:01:31]} 27. a4 {[%clk 0:01:06]}  gxh3 {[%clk 0:01:23]} 28. gxh3 {[%clk 0:01:05]}  Rhg8 {[%clk 0:01:23]} 29. Kh2 {[%clk 0:01:02]}  Bh4 {[%clk 0:01:10]} 30. Bf4 {[%clk 0:01:00]}  Bh7 {[%clk 0:00:57]} 31. Rg1 {[%clk 0:00:43]}  Rxg1 {[%clk 0:00:56]} 32. Kxg1 {[%clk 0:00:43]}  Be1 {[%clk 0:00:55]} 33. Rb3 {[%clk 0:00:35]}  a5 {[%clk 0:00:41]} 34. b5 {[%clk 0:00:34]}  Bb4 {[%clk 0:00:41]} 35. Be3 {[%clk 0:00:27]}  Rg8+ {[%clk 0:00:39]} 36. Kf2 {[%clk 0:00:27]}  h4 {[%clk 0:00:38]} 37. b6+ {[%clk 0:00:21]}  Kb7 {[%clk 0:00:36]} 38. Nb5 {[%clk 0:00:21]}  Bc2 {[%clk 0:00:32]} 39. Rb2 {[%clk 0:00:18]}  Bxa4 {[%clk 0:00:33]} 40. Na7 {[%clk 0:00:16]}  Bc6 {[%clk 0:00:25]} 41. Rb1 {[%clk 0:00:13]}  Rg3 {[%clk 0:00:23]} 42. Ra1 {[%clk 0:00:06]}  d4 {[%clk 0:00:22]} 43. Bxd4 {[%clk 0:00:04]}  Rxf3+ {[%clk 0:00:23]} 44. Ke2 {[%clk 0:00:04]}  Rxh3 {[%clk 0:00:23]} 45. Nxc6 {[%clk 0:00:04]}  Kxc6 {[%clk 0:00:23]} 46. Rf1 {[%clk 0:00:04]}  Bxc5 {[%clk 0:00:13]} 47. Rc1 {[%clk 0:00:03]}  Kxb6 {[%clk 0:00:13]} 48. Bxc5+ {[%clk 0:00:03]}  Kb5 {[%clk 0:00:13]} 49. Be7 {[%clk 0:00:03]}  Rh2+ {[%clk 0:00:11]} 50. Kf3 {[%clk 0:00:03]}  h3 {[%clk 0:00:11]} 51. Bf6 {[%clk 0:00:02]}  Rb2 {[%clk 0:00:09]} 0-1


[Site "https://www.chess.com"]

[Event "Titled Tuesday Blitz June 15 2021"]
[White "Chernomordik, Pavel"]
[Black "Real De Azua, Ernesto"]
[WhiteFideId "2804530"]
[BlackFideId "108154"]
[WhiteElo "2299"]
[BlackElo "2476"]
[Result "0-1"]
[Round "10"]
[TimeControl "180+1"]
[Date "2021.06.15"]
[WhiteClock "0:00:52"]
[BlackClock "0:01:20"]

1. e4 {[%clk 0:03:00]}  c6 {[%clk 0:02:58]} 2. Nc3 {[%clk 0:03:00]}  d5 {[%clk 0:02:58]} 3. Qf3 {[%clk 0:03:00]}  e6 {[%clk 0:02:54]} 4. d3 {[%clk 0:02:58]}  Nf6 {[%clk 0:02:54]} 5. Bd2 {[%clk 0:02:54]}  d4 {[%clk 0:02:36]} 6. Nce2 {[%clk 0:02:51]}  c5 {[%clk 0:02:35]} 7. Qg3 {[%clk 0:02:48]}  Nc6 {[%clk 0:02:34]} 8. f4 {[%clk 0:02:47]}  c4 {[%clk 0:02:20]} 9. e5 {[%clk 0:02:35]}  Nd5 {[%clk 0:02:15]} 10. dxc4 {[%clk 0:02:31]}  Ndb4 {[%clk 0:02:14]} 11. Kd1 {[%clk 0:01:37]}  d3 {[%clk 0:01:57]} 12. cxd3 {[%clk 0:01:34]}  Nxd3 {[%clk 0:01:58]} 13. Nc3 {[%clk 0:01:24]}  Nxb2+ {[%clk 0:01:44]} 14. Kc1 {[%clk 0:01:16]}  Ba3 {[%clk 0:01:26]} 15. Nb5 {[%clk 0:00:52]}  Nxc4+ {[%clk 0:01:20]} 0-1


[Site "https://www.chess.com"]

[Event "Titled Tuesday Blitz June 15 2021"]
[White "Colas, Joshua"]
[Black "Gontcharov, Vladislav"]
[WhiteFideId "2044447"]
[BlackFideId "4123492"]
[WhiteElo "2347"]
[BlackElo "2503"]
[Result "1-0"]
[Round "10"]
[TimeControl "180+1"]
[Date "2021.06.15"]
[WhiteClock "0:00:10"]
[BlackClock "0:00:01"]

1. Nf3 {[%clk 0:03:00]}  Nf6 {[%clk 0:02:59]} 2. c4 {[%clk 0:03:01]}  g6 {[%clk 0:02:59]} 3. b3 {[%clk 0:03:01]}  Bg7 {[%clk 0:02:58]} 4. Bb2 {[%clk 0:03:02]}  O-O {[%clk 0:02:58]} 5. g3 {[%clk 0:03:02]}  c5 {[%clk 0:02:56]} 6. Bg2 {[%clk 0:03:03]}  d5 {[%clk 0:02:56]} 7. cxd5 {[%clk 0:03:02]}  Qxd5 {[%clk 0:02:55]} 8. O-O {[%clk 0:03:01]}  Qh5 {[%clk 0:02:55]} 9. Qc1 {[%clk 0:02:53]}  Nc6 {[%clk 0:02:47]} 10. d3 {[%clk 0:02:52]}  Bh3 {[%clk 0:02:36]} 11. Bxh3 {[%clk 0:02:42]}  Qxh3 {[%clk 0:02:36]} 12. Qxc5 {[%clk 0:02:43]}  Ng4 {[%clk 0:02:36]} 13. Bxg7 {[%clk 0:02:42]}  Kxg7 {[%clk 0:02:35]} 14. Qg5 {[%clk 0:02:39]}  Nd4 {[%clk 0:02:26]} 15. Nbd2 {[%clk 0:02:18]}  Nxe2+ {[%clk 0:02:16]} 16. Kh1 {[%clk 0:02:17]}  e5 {[%clk 0:02:02]} 17. Qh4 {[%clk 0:02:04]}  Qxh4 {[%clk 0:01:57]} 18. gxh4 {[%clk 0:01:59]}  f6 {[%clk 0:01:47]} 19. Rae1 {[%clk 0:01:50]}  Nf4 {[%clk 0:01:45]} 20. d4 {[%clk 0:01:45]}  Rad8 {[%clk 0:01:25]} 21. Nc4 {[%clk 0:01:34]}  Nd3 {[%clk 0:01:20]} 22. Re2 {[%clk 0:01:33]}  e4 {[%clk 0:01:19]} 23. Nfd2 {[%clk 0:01:23]}  Rxd4 {[%clk 0:01:14]} 24. h3 {[%clk 0:01:20]}  Ngxf2+ {[%clk 0:01:06]} 25. Rfxf2 {[%clk 0:01:18]}  Nxf2+ {[%clk 0:01:06]} 26. Rxf2 {[%clk 0:01:19]}  b5 {[%clk 0:01:02]} 27. Ne3 {[%clk 0:01:17]}  f5 {[%clk 0:01:02]} 28. Ng2 {[%clk 0:01:11]}  Rfd8 {[%clk 0:00:59]} 29. Nf1 {[%clk 0:01:12]}  Kf6 {[%clk 0:00:57]} 30. Nf4 {[%clk 0:01:03]}  Ke5 {[%clk 0:00:56]} 31. Kg2 {[%clk 0:01:03]}  Rd1 {[%clk 0:00:50]} 32. Ne2 {[%clk 0:00:49]}  Rc8 {[%clk 0:00:44]} 33. h5 {[%clk 0:00:43]}  Ra1 {[%clk 0:00:36]} 34. hxg6 {[%clk 0:00:42]}  hxg6 {[%clk 0:00:35]} 35. Nf4 {[%clk 0:00:36]}  g5 {[%clk 0:00:33]} 36. Nh5 {[%clk 0:00:36]}  f4 {[%clk 0:00:32]} 37. h4 {[%clk 0:00:34]}  e3 {[%clk 0:00:32]} 38. Re2 {[%clk 0:00:34]}  Rcc1 {[%clk 0:00:30]} 39. Nh2 {[%clk 0:00:33]}  gxh4 {[%clk 0:00:22]} 40. Nf3+ {[%clk 0:00:31]}  Ke4 {[%clk 0:00:23]} 41. Nd2+ {[%clk 0:00:21]}  Kd3 {[%clk 0:00:22]} 42. Nxf4+ {[%clk 0:00:21]}  Kd4 {[%clk 0:00:18]} 43. Nf3+ {[%clk 0:00:21]}  Ke4 {[%clk 0:00:18]} 44. Nh3 {[%clk 0:00:18]}  Rd1 {[%clk 0:00:16]} 45. Nf2+ {[%clk 0:00:18]}  Kf4 {[%clk 0:00:14]} 46. Nxd1 {[%clk 0:00:19]}  Rxd1 {[%clk 0:00:14]} 47. Nxh4 {[%clk 0:00:18]}  Ke4 {[%clk 0:00:14]} 48. Nf3 {[%clk 0:00:15]}  Kd3 {[%clk 0:00:14]} 49. Re1 {[%clk 0:00:15]}  Rd2+ {[%clk 0:00:13]} 50. Kg3 {[%clk 0:00:13]}  Rxa2 {[%clk 0:00:13]} 51. Kf4 {[%clk 0:00:14]}  e2 {[%clk 0:00:12]} 52. Kg3 {[%clk 0:00:14]}  Rb2 {[%clk 0:00:11]} 53. Kf2 {[%clk 0:00:11]}  a5 {[%clk 0:00:11]} 54. Ne5+ {[%clk 0:00:11]}  Kc3 {[%clk 0:00:12]} 55. Nc6 {[%clk 0:00:10]}  a4 {[%clk 0:00:11]} 56. bxa4 {[%clk 0:00:11]}  bxa4 {[%clk 0:00:10]} 57. Ra1 {[%clk 0:00:11]}  Kb3 {[%clk 0:00:08]} 58. Nd4+ {[%clk 0:00:11]}  Kb4 {[%clk 0:00:09]} 59. Nc6+ {[%clk 0:00:12]}  Kb5 {[%clk 0:00:07]} 60. Nd4+ {[%clk 0:00:12]}  Kb4 {[%clk 0:00:08]} 61. Nxe2 {[%clk 0:00:13]}  a3 {[%clk 0:00:08]} 62. Ke3 {[%clk 0:00:13]}  a2 {[%clk 0:00:07]} 63. Kd3 {[%clk 0:00:12]}  Ka3 {[%clk 0:00:07]} 64. Nc3 {[%clk 0:00:11]}  Rh2 {[%clk 0:00:06]} 65. Kc4 {[%clk 0:00:11]}  Rh4+ {[%clk 0:00:06]} 66. Kd3 {[%clk 0:00:11]}  Rh3+ {[%clk 0:00:06]} 67. Kd2 {[%clk 0:00:12]}  Rh2+ {[%clk 0:00:06]} 68. Kd3 {[%clk 0:00:12]}  Kb2 {[%clk 0:00:07]} 69. Rxa2+ {[%clk 0:00:12]}  Kc1 {[%clk 0:00:07]} 70. Ra1+ {[%clk 0:00:12]}  Kb2 {[%clk 0:00:07]} 71. Ra2+ {[%clk 0:00:12]}  Kc1 {[%clk 0:00:07]} 72. Ra1+ {[%clk 0:00:13]}  Kb2 {[%clk 0:00:07]} 73. Rb1+ {[%clk 0:00:14]}  Ka3 {[%clk 0:00:07]} 74. Kd4 {[%clk 0:00:13]}  Rh4+ {[%clk 0:00:07]} 75. Kc5 {[%clk 0:00:13]}  Rh5+ {[%clk 0:00:06]} 76. Kc4 {[%clk 0:00:13]}  Rh4+ {[%clk 0:00:07]} 77. Kd5 {[%clk 0:00:13]}  Rh5+ {[%clk 0:00:07]} 78. Kd4 {[%clk 0:00:14]}  Rh4+ {[%clk 0:00:07]} 79. Ne4 {[%clk 0:00:14]}  Ka4 {[%clk 0:00:06]} 80. Kd5 {[%clk 0:00:14]}  Rg4 {[%clk 0:00:06]} 81. Nd6 {[%clk 0:00:12]}  Rh4 {[%clk 0:00:02]} 82. Kc5 {[%clk 0:00:12]}  Rh5+ {[%clk 0:00:02]} 83. Kc4 {[%clk 0:00:11]}  Rh4+ {[%clk 0:00:02]} 84. Kc3 {[%clk 0:00:12]}  Rh3+ {[%clk 0:00:02]} 85. Kd4 {[%clk 0:00:13]}  Rh4+ {[%clk 0:00:03]} 86. Kd5 {[%clk 0:00:13]}  Rh5+ {[%clk 0:00:03]} 87. Kc6 {[%clk 0:00:14]}  Rh4 {[%clk 0:00:03]} 88. Nf5 {[%clk 0:00:14]}  Rg4 {[%clk 0:00:03]} 89. Ne3 {[%clk 0:00:13]}  Rh4 {[%clk 0:00:02]} 90. Nd5 {[%clk 0:00:14]}  Rg4 {[%clk 0:00:02]} 91. Nc3+ {[%clk 0:00:14]}  Ka3 {[%clk 0:00:02]} 92. Kc5 {[%clk 0:00:15]}  Rh4 {[%clk 0:00:01]} 93. Nd5 {[%clk 0:00:15]}  Rg4 {[%clk 0:00:02]} 94. Nf6 {[%clk 0:00:15]}  Rh4 {[%clk 0:00:02]} 95. Nd7 {[%clk 0:00:15]}  Ka2 {[%clk 0:00:02]} 96. Rb8 {[%clk 0:00:14]}  Ka3 {[%clk 0:00:02]} 97. Ne5 {[%clk 0:00:11]}  Rh3 {[%clk 0:00:01]} 98. Kc4 {[%clk 0:00:10]}  Ka2 {[%clk 0:00:02]} 99. Nd3 {[%clk 0:00:10]}  Rh4+ {[%clk 0:00:01]} 100. Kc3 {[%clk 0:00:10]} 1-0


[Site "https://www.chess.com"]

[Event "Titled Tuesday Blitz June 15 2021"]
[White "Demchenko, Anton"]
[Black "Howell, David W L"]
[WhiteFideId "4160258"]
[BlackFideId "410608"]
[WhiteElo "2593"]
[BlackElo "2643"]
[Result "1/2-1/2"]
[Round "10"]
[TimeControl "180+1"]
[Date "2021.06.15"]
[WhiteClock "0:00:29"]
[BlackClock "0:00:11"]

1. e4 {[%clk 0:03:00]}  g6 {[%clk 0:02:56]} 2. d4 {[%clk 0:03:00]}  Bg7 {[%clk 0:02:55]} 3. Nc3 {[%clk 0:02:59]}  c6 {[%clk 0:02:55]} 4. Nf3 {[%clk 0:02:58]}  d5 {[%clk 0:02:55]} 5. Bf4 {[%clk 0:02:59]}  dxe4 {[%clk 0:02:51]} 6. Nxe4 {[%clk 0:02:58]}  Nf6 {[%clk 0:02:52]} 7. Nxf6+ {[%clk 0:02:58]}  exf6 {[%clk 0:02:53]} 8. h3 {[%clk 0:02:57]}  O-O {[%clk 0:02:53]} 9. Be2 {[%clk 0:02:57]}  Na6 {[%clk 0:02:40]} 10. O-O {[%clk 0:02:57]}  Nc7 {[%clk 0:02:40]} 11. c3 {[%clk 0:02:53]}  a5 {[%clk 0:02:30]} 12. a4 {[%clk 0:02:53]}  Nd5 {[%clk 0:02:28]} 13. Bh2 {[%clk 0:02:53]}  Re8 {[%clk 0:02:17]} 14. Re1 {[%clk 0:02:53]}  Bh6 {[%clk 0:02:12]} 15. Bf1 {[%clk 0:02:46]}  Be6 {[%clk 0:02:12]} 16. Nd2 {[%clk 0:02:36]}  Bxd2 {[%clk 0:01:41]} 17. Qxd2 {[%clk 0:02:36]}  Kg7 {[%clk 0:01:41]} 18. Bd3 {[%clk 0:02:23]}  Qd7 {[%clk 0:01:38]} 19. Qc2 {[%clk 0:02:14]}  Ne7 {[%clk 0:01:22]} 20. Re2 {[%clk 0:02:09]}  Bf5 {[%clk 0:01:22]} 21. Rae1 {[%clk 0:02:08]}  Bxd3 {[%clk 0:01:21]} 22. Qxd3 {[%clk 0:02:09]}  Nd5 {[%clk 0:01:20]} 23. Bg3 {[%clk 0:02:07]}  h5 {[%clk 0:01:16]} 24. f3 {[%clk 0:02:03]}  b5 {[%clk 0:01:02]} 25. Qc2 {[%clk 0:01:49]}  Rxe2 {[%clk 0:01:00]} 26. Qxe2 {[%clk 0:01:45]}  bxa4 {[%clk 0:00:52]} 27. Ra1 {[%clk 0:01:45]}  Nb6 {[%clk 0:00:52]} 28. Bf2 {[%clk 0:01:40]}  Qe6 {[%clk 0:00:41]} 29. Qxe6 {[%clk 0:00:58]}  fxe6 {[%clk 0:00:42]} 30. d5 {[%clk 0:00:59]}  Nxd5 {[%clk 0:00:41]} 31. Rxa4 {[%clk 0:01:00]}  Rb8 {[%clk 0:00:34]} 32. Rxa5 {[%clk 0:01:00]}  Rxb2 {[%clk 0:00:33]} 33. Ra7+ {[%clk 0:00:59]}  Kh6 {[%clk 0:00:30]} 34. c4 {[%clk 0:01:00]}  Nf4 {[%clk 0:00:14]} 35. Be3 {[%clk 0:00:57]}  g5 {[%clk 0:00:14]} 36. Bxf4 {[%clk 0:00:55]}  gxf4 {[%clk 0:00:15]} 37. Rc7 {[%clk 0:00:56]}  e5 {[%clk 0:00:14]} 38. h4 {[%clk 0:00:54]}  Kg6 {[%clk 0:00:14]} 39. Rxc6 {[%clk 0:00:54]}  Rc2 {[%clk 0:00:15]} 40. Rc8 {[%clk 0:00:53]}  Kf5 {[%clk 0:00:15]} 41. c5 {[%clk 0:00:52]}  Ke6 {[%clk 0:00:15]} 42. c6 {[%clk 0:00:50]}  Kd6 {[%clk 0:00:14]} 43. Rf8 {[%clk 0:00:48]}  Ke7 {[%clk 0:00:14]} 44. Rc8 {[%clk 0:00:48]}  Kd6 {[%clk 0:00:13]} 45. Rd8+ {[%clk 0:00:44]}  Ke6 {[%clk 0:00:12]} 46. Re8+ {[%clk 0:00:42]}  Kd6 {[%clk 0:00:11]} 47. Rd8+ {[%clk 0:00:29]}  Ke6 {[%clk 0:00:10]} 48. Re8+ {[%clk 0:00:29]}  Kd6 {[%clk 0:00:11]} 49. Rd8+ {[%clk 0:00:29]} 1/2-1/2


[Site "https://www.chess.com"]

[Event "Titled Tuesday Blitz June 15 2021"]
[White "Dobrov, Vladimir"]
[Black "Iskusnyh, Sergei"]
[WhiteFideId "4136594"]
[BlackFideId "4120027"]
[WhiteElo "2614"]
[BlackElo "2492"]
[Result "1-0"]
[Round "10"]
[TimeControl "180+1"]
[Date "2021.06.15"]
[WhiteClock "0:00:06"]
[BlackClock "0:00:01"]

1. d4 {[%clk 0:03:00]}  d5 {[%clk 0:02:59]} 2. c4 {[%clk 0:03:00]}  e6 {[%clk 0:02:58]} 3. Nc3 {[%clk 0:03:00]}  dxc4 {[%clk 0:02:57]} 4. e4 {[%clk 0:02:56]}  c5 {[%clk 0:02:57]} 5. d5 {[%clk 0:02:53]}  Nf6 {[%clk 0:02:56]} 6. Bxc4 {[%clk 0:02:39]}  exd5 {[%clk 0:02:56]} 7. exd5 {[%clk 0:02:38]}  a6 {[%clk 0:02:50]} 8. Nf3 {[%clk 0:02:32]}  Bd6 {[%clk 0:02:45]} 9. O-O {[%clk 0:02:31]}  O-O {[%clk 0:02:40]} 10. a4 {[%clk 0:02:28]}  Bg4 {[%clk 0:02:34]} 11. h3 {[%clk 0:02:27]}  Bh5 {[%clk 0:02:32]} 12. Re1 {[%clk 0:02:05]}  Nbd7 {[%clk 0:02:28]} 13. Bg5 {[%clk 0:01:34]}  Qc7 {[%clk 0:02:15]} 14. Qd3 {[%clk 0:01:17]}  Rfe8 {[%clk 0:02:05]} 15. Ba2 {[%clk 0:00:52]}  h6 {[%clk 0:01:53]} 16. Bd2 {[%clk 0:00:49]}  Ne5 {[%clk 0:01:30]} 17. Nxe5 {[%clk 0:00:48]}  Bxe5 {[%clk 0:01:30]} 18. Rac1 {[%clk 0:00:45]}  Rad8 {[%clk 0:01:17]} 19. Be3 {[%clk 0:00:44]}  Bh2+ {[%clk 0:01:12]} 20. Kh1 {[%clk 0:00:44]}  Bd6 {[%clk 0:01:12]} 21. b4 {[%clk 0:00:36]}  Rxe3 {[%clk 0:00:54]} 22. fxe3 {[%clk 0:00:32]}  Qe7 {[%clk 0:00:48]} 23. bxc5 {[%clk 0:00:30]}  Bxc5 {[%clk 0:00:48]} 24. e4 {[%clk 0:00:12]}  Qe5 {[%clk 0:00:44]} 25. d6 {[%clk 0:00:11]}  Bxd6 {[%clk 0:00:42]} 26. g3 {[%clk 0:00:09]}  Kh7 {[%clk 0:00:23]} 27. Nd5 {[%clk 0:00:09]}  Nxd5 {[%clk 0:00:20]} 28. Bxd5 {[%clk 0:00:08]}  Bg6 {[%clk 0:00:16]} 29. Kg2 {[%clk 0:00:08]}  b5 {[%clk 0:00:14]} 30. axb5 {[%clk 0:00:08]}  axb5 {[%clk 0:00:15]} 31. Re3 {[%clk 0:00:09]}  b4 {[%clk 0:00:14]} 32. Rb1 {[%clk 0:00:09]}  Rc8 {[%clk 0:00:14]} 33. h4 {[%clk 0:00:09]}  Rc3 {[%clk 0:00:14]} 34. Qd2 {[%clk 0:00:10]}  Bc5 {[%clk 0:00:09]} 35. Rxc3 {[%clk 0:00:10]}  bxc3 {[%clk 0:00:10]} 36. Qd3 {[%clk 0:00:10]}  Bd6 {[%clk 0:00:10]} 37. Rc1 {[%clk 0:00:10]}  f5 {[%clk 0:00:10]} 38. Qxc3 {[%clk 0:00:09]}  Qe7 {[%clk 0:00:06]} 39. exf5 {[%clk 0:00:10]}  Qe2+ {[%clk 0:00:06]} 40. Kh1 {[%clk 0:00:07]}  Bxf5 {[%clk 0:00:06]} 41. Qf3 {[%clk 0:00:08]}  Qe5 {[%clk 0:00:05]} 42. Kg2 {[%clk 0:00:06]}  Bg6 {[%clk 0:00:04]} 43. Rf1 {[%clk 0:00:05]}  Bc5 {[%clk 0:00:03]} 44. Rd1 {[%clk 0:00:05]}  Qb2+ {[%clk 0:00:03]} 45. Kh3 {[%clk 0:00:05]}  Qe5 {[%clk 0:00:03]} 46. Rd3 {[%clk 0:00:05]}  Qe1 {[%clk 0:00:03]} 47. Rd1 {[%clk 0:00:05]}  Qe5 {[%clk 0:00:02]} 48. Rd2 {[%clk 0:00:05]}  Qe1 {[%clk 0:00:01]} 49. Re2 {[%clk 0:00:06]}  Qd1 {[%clk 0:00:01]} 50. h5 {[%clk 0:00:06]} 1-0


[Site "https://www.chess.com"]

[Event "Titled Tuesday Blitz June 15 2021"]
[White "Donchenko, Alexander"]
[Black "Indjic, Aleksandar"]
[WhiteFideId "24603295"]
[BlackFideId "911925"]
[WhiteElo "2553"]
[BlackElo "2643"]
[Result "0-1"]
[Round "10"]
[TimeControl "180+1"]
[Date "2021.06.15"]
[WhiteClock "0:00:02"]
[BlackClock "0:00:12"]

1. e4 {[%clk 0:03:00]}  c5 {[%clk 0:02:57]} 2. Nf3 {[%clk 0:03:00]}  d6 {[%clk 0:02:57]} 3. Bb5+ {[%clk 0:03:00]}  Nd7 {[%clk 0:02:57]} 4. O-O {[%clk 0:03:00]}  Nf6 {[%clk 0:02:57]} 5. Re1 {[%clk 0:02:59]}  a6 {[%clk 0:02:57]} 6. Bd3 {[%clk 0:03:00]}  b5 {[%clk 0:02:53]} 7. c3 {[%clk 0:02:58]}  Bb7 {[%clk 0:02:48]} 8. a4 {[%clk 0:02:57]}  c4 {[%clk 0:02:48]} 9. Bc2 {[%clk 0:02:58]}  e6 {[%clk 0:02:41]} 10. d4 {[%clk 0:02:58]}  cxd3 {[%clk 0:02:40]} 11. Qxd3 {[%clk 0:02:58]}  Nc5 {[%clk 0:02:36]} 12. Qe2 {[%clk 0:02:58]}  bxa4 {[%clk 0:02:35]} 13. Be3 {[%clk 0:02:58]}  Nfd7 {[%clk 0:02:34]} 14. Bxc5 {[%clk 0:02:58]}  Nxc5 {[%clk 0:02:34]} 15. Rxa4 {[%clk 0:02:58]}  Be7 {[%clk 0:02:29]} 16. Ra1 {[%clk 0:02:49]}  O-O {[%clk 0:02:27]} 17. Nbd2 {[%clk 0:02:47]}  a5 {[%clk 0:02:26]} 18. b4 {[%clk 0:02:47]}  axb4 {[%clk 0:02:02]} 19. cxb4 {[%clk 0:02:48]}  Nd7 {[%clk 0:02:02]} 20. Qd3 {[%clk 0:02:38]}  g6 {[%clk 0:01:51]} 21. Ba4 {[%clk 0:02:26]}  Nb6 {[%clk 0:01:43]} 22. Bb3 {[%clk 0:02:24]}  d5 {[%clk 0:01:43]} 23. exd5 {[%clk 0:02:21]}  Nxd5 {[%clk 0:01:42]} 24. b5 {[%clk 0:02:18]}  Qb6 {[%clk 0:01:41]} 25. Bc4 {[%clk 0:02:00]}  Rfd8 {[%clk 0:01:39]} 26. Rxa8 {[%clk 0:01:59]}  Bxa8 {[%clk 0:01:39]} 27. Qe4 {[%clk 0:01:11]}  Bc5 {[%clk 0:01:34]} 28. Qh4 {[%clk 0:00:57]}  Kg7 {[%clk 0:01:05]} 29. Ne4 {[%clk 0:00:55]}  Be7 {[%clk 0:01:04]} 30. Qg3 {[%clk 0:00:53]}  h6 {[%clk 0:00:56]} 31. h4 {[%clk 0:00:50]}  Rc8 {[%clk 0:00:43]} 32. Ne5 {[%clk 0:00:49]}  Qd4 {[%clk 0:00:33]} 33. Bb3 {[%clk 0:00:40]}  Nc3 {[%clk 0:00:27]} 34. Nc6 {[%clk 0:00:27]}  Nxe4 {[%clk 0:00:20]} 35. Qf4 {[%clk 0:00:07]}  Bxc6 {[%clk 0:00:15]} 36. bxc6 {[%clk 0:00:08]}  f5 {[%clk 0:00:15]} 37. Bxe6 {[%clk 0:00:07]}  Rxc6 {[%clk 0:00:15]} 38. Ba2 {[%clk 0:00:03]}  Bc5 {[%clk 0:00:14]} 39. Rf1 {[%clk 0:00:03]}  Rd6 {[%clk 0:00:13]} 40. Bb1 {[%clk 0:00:03]}  Nf6 {[%clk 0:00:13]} 41. Qf3 {[%clk 0:00:03]}  Ng4 {[%clk 0:00:13]} 42. Qb7+ {[%clk 0:00:03]}  Rd7 {[%clk 0:00:13]} 43. Qb5 {[%clk 0:00:02]}  Qxf2+ {[%clk 0:00:12]} 44. Rxf2 {[%clk 0:00:02]}  Rd1+ {[%clk 0:00:12]} 0-1


[Site "https://www.chess.com"]